[Event "Veteran-SM 65+ 2025"]
[Site "Uppsala, Sweden"]
[Date "2025.06.29"]
[Round "2.7"]
[White "Carlsson, Ingvar"]
[Black "Backlin, Torbjorn"]
[Result "1-0"]
[TimeControl "90 min for 40 move + 30 min with an increment of 30 sec starting move 1"]
[WhiteFideId "1702670"]
[BlackFideId "1718193"]
[WhiteElo "1987"]
[BlackElo "1710"]

1. e4 {[%clk 01:30:54]} {[%emt 00:00:04]} Nc6 {[%clk 01:30:38]} {[%emt
00:00:23]} 2. Nf3 {[%clk 01:30:24]} {[%emt 00:01:00]} h6 {[%clk 01:30:17]}
{[%emt 00:00:52]} 3. d4 {[%clk 01:29:21]} {[%emt 00:01:32]} g5 {[%clk
01:30:24]} {[%emt 00:00:23]} 4. d5 {[%clk 01:28:01]} {[%emt 00:01:50]} g4
{[%clk 01:30:37]} {[%emt 00:00:17]} 5. dxc6 {[%clk 01:27:21]} {[%emt 00:01:10]}
gxf3 {[%clk 01:30:56]} {[%emt 00:00:11]} 6. cxd7+ {[%emt 00:03:33]} Qxd7 {[%clk
01:31:16]} 7. Qxf3 {[%clk 01:24:28]} {[%emt 00:00:30]} Qd6 {[%clk 01:31:36]}
{[%emt 00:00:11]} 8. Bc4 {[%clk 01:22:09]} {[%emt 00:02:48]} Nf6 {[%clk
01:30:47]} {[%emt 00:01:17]} 9. Nc3 {[%clk 01:18:42]} {[%emt 00:03:58]} c6
{[%clk 01:30:14]} {[%emt 00:01:04]} 10. Bf4 {[%clk 01:13:36]} {[%emt 00:05:36]}
e5 {[%clk 01:29:22]} {[%emt 00:01:22]} 11. Bg3 {[%clk 01:13:24]} {[%emt
00:00:42]} Rg8 {[%clk 01:25:52]} {[%emt 00:04:00]} 12. Qd3 {[%clk 01:02:28]}
{[%emt 00:11:25]} Qe7 {[%clk 01:18:45]} {[%emt 00:07:39]} 13. O-O-O {[%clk
01:02:03]} {[%emt 00:00:54]} Nd7 {[%clk 01:16:28]} {[%emt 00:02:48]} 14. Rhf1
{[%clk 00:52:47]} {[%emt 00:09:45]} Nc5 {[%clk 01:09:47]} {[%emt 00:07:11]} 15.
Qe3 {[%clk 00:36:18]} {[%emt 00:16:59]} h5 {[%clk 01:06:14]} {[%emt 00:04:03]}
16. h4 {[%clk 00:35:13]} {[%emt 00:01:35]} Rg6 {[%clk 01:05:44]} {[%emt
00:01:00]} 17. Kb1 {[%clk 00:35:18]} {[%emt 00:00:25]} Bh6 {[%clk 01:05:39]}
{[%emt 00:00:36]} 18. Qe1 {[%clk 00:34:26]} {[%emt 00:01:21]} Be6 {[%clk
01:03:33]} {[%emt 00:02:36]} 19. Bxe6 {[%clk 00:34:23]} {[%emt 00:00:33]} Qxe6
{[%clk 01:03:19]} {[%emt 00:00:45]} 20. Qe2 {[%clk 00:28:22]} {[%emt 00:06:30]}
Rg4 {[%clk 00:55:01]} {[%emt 00:08:48]} 21. Qf3 {[%clk 00:27:45]} {[%emt
00:01:06]} Nd7 {[%clk 00:54:37]} {[%emt 00:00:55]} 22. Rfe1 {[%clk 00:26:02]}
{[%emt 00:02:12]} O-O-O {[%clk 00:54:35]} {[%emt 00:00:32]} 23. Rd3 {[%clk
00:23:42]} {[%emt 00:02:50]} Nc5 {[%clk 00:50:24]} {[%emt 00:04:42]} 24. Rxd8+
{[%clk 00:23:55]} {[%emt 00:00:17]} Kxd8 {[%clk 00:50:49]} {[%emt 00:00:05]} 25.
a3 {[%clk 00:17:36]} {[%emt 00:06:50]} Ke7 {[%clk 00:50:25]} {[%emt 00:00:53]}
26. b4 {[%clk 00:14:40]} {[%emt 00:03:27]} Nd7 {[%clk 00:50:32]} {[%emt
00:00:23]} 27. Qd3 {[%clk 00:13:24]} {[%emt 00:01:45]} Kf8 {[%clk 00:47:29]}
{[%emt 00:03:31]} 28. Rd1 {[%clk 00:13:29]} {[%emt 00:00:27]} Nb6 {[%clk
00:46:40]} {[%emt 00:01:20]} 29. Qd6+ {[%clk 00:08:30]} {[%emt 00:05:29]} Qxd6
{[%clk 00:46:40]} {[%emt 00:00:29]} 30. Rxd6 {[%clk 00:08:58]} {[%emt
00:00:02]} Bg7 {[%clk 00:46:09]} {[%emt 00:00:59]} 31. Rd8+ {[%clk 00:09:02]}
{[%emt 00:00:27]} Ke7 {[%clk 00:46:29]} {[%emt 00:00:11]} 32. Rb8 {[%clk
00:09:11]} {[%emt 00:00:21]} Nd7 {[%clk 00:45:47]} {[%emt 00:01:11]} 33. Rxb7
{[%clk 00:09:29]} {[%emt 00:00:13]} Kd6 {[%clk 00:45:44]} {[%emt 00:00:33]} 34.
Rxa7 {[%clk 00:09:35]} {[%emt 00:00:25]} 1-0

[Event "Veteran-SM 65+ 2025"]
[Site "Uppsala, Sweden"]
[Date "2025.06.29"]
[Round "2.8"]
[White "Larsson, Borje"]
[Black "Hogberg, Thomas"]
[Result "1/2-1/2"]
[TimeControl "90 min for 40 move + 30 min with an increment of 30 sec starting move 1"]
[WhiteFideId "1717561"]
[BlackFideId "1706039"]
[WhiteElo "1862"]
[BlackElo "1979"]

1. c4 {[%clk 01:30:50]} {[%emt 00:00:09]} e5 {[%clk 01:29:11]} {[%emt
00:01:50]} 2. g3 {[%clk 01:30:34]} {[%emt 00:00:46]} Nc6 {[%clk 01:28:54]}
{[%emt 00:00:47]} 3. Bg2 {[%clk 01:30:04]} {[%emt 00:01:00]} f5 {[%clk
01:28:55]} {[%emt 00:00:29]} 4. Nc3 {[%clk 01:29:18]} {[%emt 00:01:16]} Nf6
{[%clk 01:29:07]} {[%emt 00:00:18]} 5. d3 {[%clk 01:28:14]} {[%emt 00:01:33]}
Be7 {[%clk 01:27:02]} {[%emt 00:02:36]} 6. e3 {[%clk 01:26:58]} {[%emt
00:01:46]} O-O {[%clk 01:23:41]} {[%emt 00:03:52]} 7. Nge2 {[%clk 01:26:24]}
{[%emt 00:01:02]} d6 {[%clk 01:22:40]} {[%emt 00:01:33]} 8. O-O {[%clk
01:25:42]} {[%emt 00:01:11]} Qe8 {[%clk 01:21:42]} {[%emt 00:01:27]} 9. Nd5
{[%clk 01:20:08]} {[%emt 00:06:06]} Bd8 {[%clk 01:21:53]} {[%emt 00:00:18]} 10.
Bd2 {[%clk 01:11:16]} {[%emt 00:09:22]} Ne7 {[%clk 01:18:03]} {[%emt 00:04:19]}
11. Nxe7+ {[%clk 01:07:45]} {[%emt 00:04:02]} Bxe7 {[%clk 01:16:38]} {[%emt
00:01:56]} 12. Nc3 {[%clk 01:07:05]} {[%emt 00:01:09]} c6 {[%clk 01:16:49]}
{[%emt 00:00:20]} 13. Rb1 {[%clk 01:06:04]} {[%emt 00:01:30]} Be6 {[%clk
01:08:05]} {[%emt 00:09:14]} 14. Qe2 {[%clk 01:00:19]} {[%emt 00:06:15]} d5
{[%clk 01:04:29]} {[%emt 00:04:06]} 15. cxd5 {[%clk 00:58:29]} {[%emt
00:02:19]} Nxd5 16. Nxd5 {[%clk 00:57:20]} Bxd5 {[%clk 01:01:13]} {[%emt
00:00:18]} 17. Bxd5+ {[%clk 00:56:40]} {[%emt 00:01:11]} cxd5 {[%clk 01:00:45]}
{[%emt 00:00:58]} 18. f4 {[%clk 00:51:19]} {[%emt 00:05:50]} e4 {[%clk
00:55:17]} {[%emt 00:05:59]} 19. d4 {[%clk 00:50:59]} {[%emt 00:00:50]} Qa4
{[%clk 00:54:31]} {[%emt 00:01:14]} 20. a3 {[%clk 00:50:59]} {[%emt 00:00:32]}
Rac8 {[%clk 00:54:44]} {[%emt 00:00:15]} 21. Rfc1 {[%clk 00:49:57]} {[%emt
00:01:33]} Rc2 {[%clk 00:52:49]} {[%emt 00:02:25]} 22. Rxc2 {[%clk 00:49:00]}
{[%emt 00:01:28]} Qxc2 {[%clk 00:53:07]} {[%emt 00:00:11]} 23. Qe1 {[%clk
00:45:49]} {[%emt 00:03:40]} Qb3 {[%clk 00:49:41]} {[%emt 00:03:56]} 24. Qd1
{[%clk 00:44:35]} {[%emt 00:01:44]} Qxd1+ {[%clk 00:43:28]} {[%emt 00:06:44]}
25. Rxd1 {[%clk 00:44:57]} {[%emt 00:00:08]} Rc8 {[%clk 00:43:53]} {[%emt
00:00:05]} 26. Rc1 {[%clk 00:44:47]} {[%emt 00:00:40]} Rxc1+ {[%clk 00:38:26]}
{[%emt 00:05:58]} 27. Bxc1 {[%clk 00:45:08]} {[%emt 00:00:08]} b5 {[%clk
00:37:49]} {[%emt 00:01:07]} 28. Bd2 {[%clk 00:45:19]} {[%emt 00:00:20]} g5
{[%clk 00:37:59]} {[%emt 00:00:20]} 29. Be1 {[%clk 00:44:02]} {[%emt 00:01:46]}
Kf7 {[%clk 00:37:38]} {[%emt 00:00:52]} 30. Kf1 {[%clk 00:43:56]} {[%emt
00:00:36]} Kg6 {[%clk 00:37:39]} {[%emt 00:00:28]} 31. Kg2 {[%clk 00:44:10]}
{[%emt 00:00:16]} h5 {[%clk 00:29:17]} {[%emt 00:08:53]} 32. Kh3 {[%clk
00:41:38]} {[%emt 00:03:00]} Kf7 {[%clk 00:25:10]} {[%emt 00:04:38]} 33. Kg2
{[%clk 00:41:00]} {[%emt 00:01:08]} Ke6 {[%clk 00:25:19]} {[%emt 00:00:22]} 34.
Kf1 {[%clk 00:40:59]} {[%emt 00:00:30]} Kd7 {[%clk 00:25:32]} {[%emt 00:00:17]}
35. Ke2 {[%clk 00:40:59]} {[%emt 00:00:31]} Bd8 {[%clk 00:25:43]} {[%emt
00:00:18]} 36. b4 {[%clk 00:40:43]} {[%emt 00:00:46]} g4 {[%clk 00:25:13]}
{[%emt 00:01:00]} 37. Kd1 {[%clk 00:40:35]} {[%emt 00:00:38]} Ke8 {[%clk
00:25:13]} {[%emt 00:00:29]} 38. Kc2 {[%clk 00:40:03]} {[%emt 00:01:03]} Kf7
{[%clk 00:25:00]} {[%emt 00:00:43]} 39. Kd1 {[%clk 00:37:42]} {[%emt 00:02:50]}
h4 {[%clk 00:21:26]} {[%emt 00:04:05]} 40. Ke2 {[%clk 00:37:40]} {[%emt
00:00:32]} h3 {[%clk 00:21:38]} {[%emt 00:00:18]} 41. Kd1 {[%clk 00:37:35]}
{[%emt 00:00:35]} Ke6 {[%clk 00:21:59]} {[%emt 00:00:09]} 42. Kc2 {[%clk
00:37:45]} {[%emt 00:00:20]} Kd6 {[%clk 00:22:23]} {[%emt 00:00:06]} 43. Kb3
{[%clk 00:37:48]} {[%emt 00:00:28]} Kc6 {[%clk 00:22:32]} {[%emt 00:00:20]} 44.
Kb2 {[%clk 00:37:37]} {[%emt 00:00:41]} Kb6 {[%clk 00:22:10]} {[%emt 00:00:53]}
45. Kc2 {[%clk 00:37:27]} {[%emt 00:00:40]} a5 {[%clk 00:22:10]} {[%emt
00:00:29]} 46. Kb3 {[%clk 00:36:38]} {[%emt 00:01:19]} Ka6 {[%clk 00:21:38]}
{[%emt 00:01:02]} 47. Kb2 {[%clk 00:36:24]} {[%emt 00:00:43]} 1/2-1/2

[Event "Veteran-SM 65+ 2025"]
[Site "Uppsala, Sweden"]
[Date "2025.06.30"]
[Round "3.1"]
[White "Marttala, Thomas"]
[Black "Andersson, Anders"]
[Result "1/2-1/2"]
[TimeControl "90 min for 40 move + 30 min with an increment of 30 sec starting move 1"]
[WhiteFideId "1701118"]
[BlackFideId "1738259"]
[WhiteElo "2123"]
[BlackElo "1991"]

1. Nf3 {[%clk 01:29:33]} {[%emt 00:01:26]} f5 {[%clk 01:29:49]} {[%emt
00:01:11]} 2. c4 {[%clk 01:29:02]} {[%emt 00:01:02]} Nf6 {[%clk 01:29:54]}
{[%emt 00:00:24]} 3. g3 {[%clk 01:29:25]} {[%emt 00:00:08]} e6 {[%clk
01:29:00]} {[%emt 00:01:23]} 4. Bg2 {[%clk 01:29:46]} {[%emt 00:00:08]} d5
{[%clk 01:28:43]} {[%emt 00:00:48]} 5. O-O {[%clk 01:29:33]} {[%emt 00:00:42]}
c6 {[%clk 01:28:39]} {[%emt 00:00:35]} 6. Qc2 {[%clk 01:23:51]} {[%emt
00:06:12]} Bd6 {[%clk 01:26:09]} {[%emt 00:03:01]} 7. d4 {[%clk 01:23:14]}
{[%emt 00:01:07]} O-O {[%clk 01:26:06]} {[%emt 00:00:32]} 8. Bf4 {[%clk
01:21:10]} {[%emt 00:02:34]} Bxf4 {[%clk 01:21:16]} {[%emt 00:05:20]} 9. gxf4
{[%clk 01:21:26]} {[%emt 00:00:14]} Ne4 {[%clk 01:21:14]} {[%emt 00:00:33]} 10.
e3 {[%clk 01:17:20]} {[%emt 00:04:35]} Rf6 {[%clk 01:16:35]} {[%emt 00:05:09]}
11. Nc3 {[%clk 01:12:24]} {[%emt 00:05:25]} Nxc3 {[%clk 01:15:02]} {[%emt
00:02:04]} 12. Qxc3 {[%clk 01:12:24]} {[%emt 00:00:30]} Nd7 {[%clk 01:14:05]}
{[%emt 00:01:26]} 13. cxd5 {[%clk 01:02:37]} {[%emt 00:10:18]} exd5 {[%clk
01:14:09]} {[%emt 00:00:26]} 14. Qc2 {[%clk 01:02:55]} {[%emt 00:00:12]} Qe8
{[%clk 01:02:25]} {[%emt 00:12:13]} 15. h3 {[%clk 00:53:28]} {[%emt 00:09:56]}
Qh5 {[%clk 00:59:15]} {[%emt 00:03:41]} 16. Qd1 {[%clk 00:50:22]} {[%emt
00:03:36]} Rh6 {[%clk 00:57:12]} {[%emt 00:02:34]} 17. Rc1 {[%clk 00:43:58]}
{[%emt 00:06:53]} Qg6 {[%clk 00:55:36]} {[%emt 00:02:06]} 18. Kh1 {[%clk
00:43:18]} {[%emt 00:01:09]} Nf6 {[%clk 00:54:32]} {[%emt 00:01:35]} 19. Ne5
{[%clk 00:43:25]} {[%emt 00:00:23]} Qe8 {[%clk 00:54:43]} {[%emt 00:00:19]} 20.
Kg1 {[%clk 00:42:05]} {[%emt 00:01:50]} Ne4 {[%clk 00:54:39]} {[%emt 00:00:35]}
21. Kh2 {[%clk 00:40:28]} {[%emt 00:02:06]} Qe7 {[%clk 00:52:26]} {[%emt
00:02:43]} 22. f3 {[%clk 00:39:13]} {[%emt 00:01:45]} 1/2-1/2

[Event "Veteran-SM 65+ 2025"]
[Site "Uppsala, Sweden"]
[Date "2025.06.30"]
[Round "3.2"]
[White "Wedin, Svante"]
[Black "Franchuck, Ivan"]
[Result "0-1"]
[TimeControl "90 min for 40 move + 30 min with an increment of 30 sec starting move 1"]
[WhiteFideId "1711989"]
[BlackFideId "14140187"]
[WhiteElo "1864"]
[BlackElo "2006"]

1. e4 {[%clk 01:30:57]} {[%emt 00:00:01]} c6 {[%clk 01:30:45]} {[%emt
00:00:15]} 2. d4 {[%clk 01:28:26]} {[%emt 00:03:02]} d5 {[%clk 01:31:07]}
{[%emt 00:00:07]} 3. f3 {[%clk 01:28:49]} {[%emt 00:00:08]} g6 {[%clk
01:30:24]} {[%emt 00:01:13]} 4. Nc3 {[%clk 01:28:02]} {[%emt 00:01:17]} Bg7
{[%clk 01:30:38]} {[%emt 00:00:16]} 5. Be3 {[%clk 01:27:25]} {[%emt 00:01:06]}
Be6 {[%clk 01:25:54]} {[%emt 00:05:14]} 6. Nge2 {[%clk 01:22:59]} {[%emt
00:04:57]} f6 {[%clk 01:21:55]} {[%emt 00:04:29]} 7. Qd2 {[%clk 01:16:24]}
{[%emt 00:07:05]} Bf7 {[%clk 01:20:24]} {[%emt 00:02:01]} 8. exd5 {[%clk
01:09:15]} {[%emt 00:07:39]} cxd5 {[%clk 01:20:27]} {[%emt 00:00:27]} 9. Nf4
{[%clk 01:06:41]} {[%emt 00:03:03]} Nc6 {[%clk 01:19:50]} {[%emt 00:01:08]} 10.
Bb5 {[%clk 01:06:37]} {[%emt 00:00:34]} e6 {[%clk 01:18:26]} {[%emt 00:01:53]}
11. Na4 {[%clk 00:56:40]} {[%emt 00:10:27]} Nge7 {[%clk 01:17:56]} {[%emt
00:01:01]} 12. Nc5 {[%clk 00:52:57]} {[%emt 00:04:13]} Qc8 {[%clk 01:17:24]}
{[%emt 00:01:02]} 13. O-O {[%clk 00:49:04]} {[%emt 00:04:23]} O-O {[%clk
01:17:28]} {[%emt 00:00:26]} 14. Ne2 {[%clk 00:45:33]} {[%emt 00:03:59]} a6
{[%clk 01:16:43]} {[%emt 00:01:15]} 15. Bd3 {[%clk 00:44:42]} {[%emt 00:01:20]}
e5 {[%clk 01:14:35]} {[%emt 00:02:38]} 16. c3 {[%clk 00:42:14]} {[%emt
00:02:58]} b6 {[%clk 01:14:07]} {[%emt 00:00:59]} 17. Nb3 {[%clk 00:42:03]}
{[%emt 00:00:41]} a5 {[%clk 01:14:15]} {[%emt 00:00:22]} 18. dxe5 {[%clk
00:40:11]} {[%emt 00:02:22]} fxe5 {[%clk 01:14:19]} {[%emt 00:00:25]} 19. Bxb6
{[%clk 00:40:01]} {[%emt 00:00:41]} a4 {[%clk 01:14:24]} {[%emt 00:00:25]} 20.
Nbc1 {[%clk 00:39:59]} {[%emt 00:00:32]} a3 {[%clk 01:13:31]} {[%emt 00:01:24]}
21. b4 {[%clk 00:39:00]} {[%emt 00:01:28]} e4 {[%clk 01:06:18]} {[%emt
00:07:42]} 22. fxe4 {[%clk 00:35:56]} {[%emt 00:03:35]} Nxb4 {[%clk 01:06:32]}
{[%emt 00:00:17]} 23. Bd4 {[%clk 00:29:15]} {[%emt 00:07:10]} Nxd3 {[%clk
01:06:34]} {[%emt 00:00:28]} 24. Qxd3 {[%clk 00:28:59]} {[%emt 00:00:46]} dxe4
{[%clk 01:05:40]} {[%emt 00:01:23]} 25. Qxe4 {[%clk 00:29:10]} {[%emt
00:00:19]} Nf5 {[%clk 01:05:51]} {[%emt 00:00:20]} 26. Bxg7 {[%clk 00:24:10]}
{[%emt 00:05:30]} Kxg7 {[%clk 01:06:04]} {[%emt 00:00:18]} 27. Nb3 {[%clk
00:18:26]} {[%emt 00:06:14]} Re8 {[%clk 01:05:07]} {[%emt 00:01:26]} 28. Qf3
{[%clk 00:18:10]} {[%emt 00:00:45]} Qc4 {[%clk 01:03:58]} {[%emt 00:01:38]} 29.
Ned4 {[%clk 00:16:48]} {[%emt 00:01:54]} Bd5 {[%clk 01:03:23]} {[%emt
00:01:04]} 30. Nxf5+ {[%clk 00:15:51]} {[%emt 00:01:28]} gxf5 {[%clk 01:02:37]}
{[%emt 00:01:17]} 31. Qg3+ {[%clk 00:15:35]} {[%emt 00:00:45]} Kh8 {[%clk
01:02:23]} {[%emt 00:00:43]} 32. Rae1 {[%clk 00:14:31]} {[%emt 00:01:34]} Be4
{[%clk 01:00:18]} {[%emt 00:02:35]} 33. Rd1 {[%clk 00:13:18]} {[%emt 00:01:43]}
Ra6 {[%clk 00:59:33]} {[%emt 00:01:16]} 34. Qe3 {[%clk 00:10:56]} {[%emt
00:02:52]} Rg6 {[%clk 00:58:04]} {[%emt 00:01:59]} 35. Rf2 {[%clk 00:10:45]}
{[%emt 00:00:42]} Kg8 {[%clk 00:56:53]} {[%emt 00:01:40]} 36. Rd4 {[%clk
00:10:35]} {[%emt 00:00:40]} Qc6 {[%clk 00:56:57]} {[%emt 00:00:25]} 37. Qd2
{[%clk 00:09:33]} {[%emt 00:01:33]} h6 {[%clk 00:55:00]} {[%emt 00:02:27]} 38.
Rd8 {[%clk 00:07:13]} {[%emt 00:02:50]} Rxd8 {[%clk 00:53:28]} {[%emt
00:02:02]} 39. Qxd8+ {[%clk 00:07:42]} {[%emt 00:00:02]} Kf7 {[%clk 00:53:41]}
{[%emt 00:00:16]} 40. Nd4 {[%clk 00:01:53]} {[%emt 00:06:18]} Qxc3 {[%clk
00:51:03]} {[%emt 00:03:09]} 41. Qd7+ {[%clk 00:00:51]} {[%emt 00:05:02]} Kg8
{[%clk 00:51:12]} {[%emt 00:00:21]} 42. Qe8+ {[%clk 00:29:06]} {[%emt
00:02:15]} Kh7 {[%clk 01:21:25]} {[%emt 00:00:17]} 43. Nf3 {[%clk 00:27:34]}
{[%emt 00:02:02]} Qa1+ {[%clk 01:21:24]} {[%emt 00:00:30]} 44. Rf1 {[%clk
00:27:36]} {[%emt 00:00:29]} Qxa2 {[%clk 01:21:42]} {[%emt 00:00:12]} 45. g3
{[%clk 00:27:15]} {[%emt 00:00:51]} Qb2 {[%clk 01:18:14]} {[%emt 00:03:58]} 46.
Nh4 {[%clk 00:21:13]} {[%emt 00:06:33]} Rg7 {[%clk 01:18:03]} {[%emt 00:00:41]}
47. Re1 {[%clk 00:16:27]} {[%emt 00:05:16]} Qd4+ {[%clk 01:16:51]} {[%emt
00:01:41]} 48. Kf1 {[%clk 00:16:13]} {[%emt 00:00:44]} a2 {[%clk 01:16:51]}
{[%emt 00:00:30]} 0-1